bitfinex-derivatives/quotes_BTCF0:USTF0_20260106
["timestamp","ask_amount","ask_price","bid_price","bid_amount"]
[1767722183096,0.09268,91776.0,91756.0,0.010903]
[1767722183292,0.09889645,91775.0,91747.0,0.09268]
[1767722183499,0.09889645,91772.0,91749.0,0.010904]
[1767722183794,0.09889645,91782.0,91748.0,0.09597109]
[1767722183997,0.09272,91781.0,91755.0,0.10687409]
[1767722184799,0.09272,91781.0,91739.0,0.00218011]
[1767722184800,0.19789106,91765.0,91739.0,0.00218011]
[1767722184997,0.09899461,91762.0,91739.0,0.00218011]
[1767722185303,0.09889645,91757.0,91739.0,0.00218011]
[1767722185592,0.09272,91764.0,91728.0,7.909e-05]
[1767722185593,0.09889645,91748.0,91728.0,7.909e-05]
[1767722185795,0.09272,91747.0,91728.0,7.909e-05]
[1767722186297,0.09272,91746.0,91709.0,0.09815191]
[1767722186496,0.09272,91746.0,91723.0,0.010907]
[1767722187396,0.010904,91745.0,91722.0,0.010907]
[1767722187694,0.09272,91746.0,91711.0,0.09597109]
[1767722187695,0.09889645,91744.0,91711.0,0.09597109]
[1767722188001,0.09272,91746.0,91716.0,0.09597109]
[1767722188192,0.10979945,91753.0,91731.0,0.010906]
[1767722188392,0.09899461,91755.0,91716.0,0.095455]
[1767722188393,0.09889645,91751.0,91723.0,0.010907]
[1767722188700,0.010905,91740.0,91718.0,0.09272]
[1767722188889,0.09889645,91744.0,91718.0,0.09272]
[1767722189091,0.010905,91736.0,91712.0,0.010908]
[1767722189396,0.010905,91736.0,91674.0,0.09597109]
[1767722189397,0.19789106,91736.0,91674.0,0.09597109]
[1767722189590,0.19789106,91736.0,91673.0,0.09272]
[1767722189591,0.10980245,91727.0,91688.0,0.095455]
[1767722189789,0.09889645,91725.0,91689.0,0.10688209]
[1767722189990,0.010906,91733.0,91689.0,0.10688209]
[1767722189991,0.09889645,91722.0,91689.0,0.10688209]
[1767722190191,0.09889645,91716.0,91689.0,0.010911]
[1767722190394,0.09889645,91722.0,91694.0,0.01091]
[1767722190593,0.09899461,91721.0,91694.0,0.01091]
[1767722190793,0.09899461,91719.0,91694.0,0.01091]
[1767722190998,0.09899461,91719.0,91679.0,0.19360763]
[1767722190999,0.09272,91724.0,91699.0,0.01091]
[1767722191200,0.0983758,91722.0,91699.0,0.01091]
[1767722191392,0.0983758,91720.0,91688.0,0.09597109]
[1767722191597,0.09272,91724.0,91707.0,0.010909]
[1767722191793,0.09272,91724.0,91701.0,0.010909]
[1767722191994,0.0983758,91723.0,91706.0,0.010909]
[1767722192202,0.28671486,91733.0,91706.0,0.09272]
[1767722192392,0.0983758,91724.0,91688.0,0.09452199]
[1767722192601,0.0983758,91722.0,91652.0,0.02925836]
[1767722192793,0.09561906,91715.0,91676.0,0.09452199]
[1767722192989,0.09279909,91721.0,91677.0,0.09272]
[1767722192990,0.0983758,91708.0,91677.0,0.09272]
[1767722193193,0.0983758,91708.0,91672.0,0.09272]
[1767722193194,0.19399486,91701.0,91672.0,0.09272]
[1767722193392,0.19399486,91698.0,91667.0,0.010913]
[1767722193596,0.0983758,91694.0,91668.0,0.09272]
[1767722193800,0.0983758,91694.0,91650.0,0.0912521]
[1767722193801,0.0983758,91694.0,91663.0,0.010914]
[1767722194000,0.010909,91701.0,91663.0,0.010914]
[1767722194001,0.0983758,91692.0,91664.0,0.09272]
[1767722194203,0.0983758,91691.0,91665.0,0.010914]
[1767722194500,0.0983758,91684.0,91649.0,0.09343435]
[1767722194705,0.0983758,91684.0,91664.0,0.010914]
[1767722194899,0.0983758,91694.0,91670.0,0.010913]
[1767722195106,0.0983758,91704.0,91672.0,0.010913]
[1767722195298,0.0983758,91702.0,91674.0,0.010913]
[1767722195499,0.0983758,91702.0,91675.0,0.09276]
[1767722195696,0.1092858,91699.0,91662.0,0.010914]
[1767722196001,0.20490486,91694.0,91662.0,0.010914]
[1767722196201,0.0983758,91690.0,91669.0,0.010913]
[1767722196408,7.909e-05,91689.0,91670.0,0.09276]
[1767722196602,0.09561906,91687.0,91661.0,0.010914]
[1767722196817,0.19407395,91686.0,91658.0,0.010915]
[1767722196997,7.909e-05,91685.0,91660.0,0.010914]
[1767722197199,0.19399486,91686.0,91661.0,0.09276]
[1767722197410,0.20490586,91686.0,91662.0,0.09276]
[1767722197703,0.010911,91685.0,91654.0,0.010915]
[1767722197908,0.0983758,91694.0,91656.0,0.09452199]
[1767722198111,0.1092838,91710.0,91679.0,0.010912]
[1767722198300,0.1092838,91710.0,91655.0,0.09276]
[1767722198301,0.0983758,91702.0,91673.0,0.010913]
[1767722198509,0.0983758,91698.0,91674.0,0.09276]
[1767722198808,0.0983758,91697.0,91673.0,0.09276]
[1767722199002,0.0983758,91696.0,91673.0,0.09276]
[1767722199208,0.01091,91696.0,91673.0,0.09276]
[1767722199407,0.09561906,91688.0,91652.0,0.103675]
[1767722199601,0.09561906,91686.0,91659.0,0.010914]
[1767722199803,0.09561906,91684.0,91655.0,0.010915]
[1767722200106,0.08561906,91684.0,91655.0,0.010915]
[1767722200309,0.08561906,91684.0,91660.0,0.010914]
[1767722200494,0.08561906,91684.0,91663.0,0.010914]
[1767722200695,7.909e-05,91683.0,91663.0,0.010914]
[1767722200900,0.09276,91704.0,91667.0,0.010913]
[1767722201097,0.0983758,91699.0,91667.0,0.010913]
[1767722201409,0.0983758,91694.0,91667.0,0.010913]
[1767722201705,0.0983758,91692.0,91657.0,0.09452199]
[1767722201906,0.0983758,91692.0,91659.0,0.09452199]
[1767722202202,0.09276,91704.0,91649.0,0.00218225]
[1767722202203,0.0983758,91690.0,91649.0,0.00218225]
[1767722202408,0.0983758,91675.0,91651.0,0.010915]
[1767722202707,0.103669,91704.0,91649.0,0.00218225]
[1767722202708,0.0983758,91668.0,91649.0,0.00218225]
[1767722203010,0.0983758,91662.0,91641.0,0.09276]
[1767722203202,0.1092898,91660.0,91635.0,0.010917]
[1767722203402,0.010912,91680.0,91638.0,0.010917]
[1767722203403,0.010914,91664.0,91638.0,0.010917]
[1767722203710,0.0983758,91671.0,91632.0,0.09276]
[1767722203711,0.1092888,91668.0,91641.0,0.010916]
[1767722203907,0.0983758,91663.0,91627.0,0.09452199]
[1767722204203,0.010913,91669.0,91642.0,0.010916]
[1767722204406,0.010913,91667.0,91637.0,0.09452199]
[1767722204604,0.0983758,91672.0,91648.0,0.010916]
[1767722204805,0.0983758,91670.0,91648.0,0.010916]
[1767722205208,0.0983758,91670.0,91637.0,0.09452199]
[1767722205404,0.0983758,91669.0,91637.0,0.09452199]
[1767722205611,0.010913,91667.0,91637.0,0.09452199]
[1767722205807,0.010913,91667.0,91612.0,0.01092]
[1767722205808,0.09561906,91662.0,91609.0,0.01]
[1767722206007,0.0983758,91635.0,91610.0,0.0928]
[1767722206310,0.0983758,91645.0,91622.0,0.010919]
[1767722206507,0.19399486,91666.0,91632.0,0.09452199]
[1767722206810,0.0983758,91666.0,91641.0,0.010916]
[1767722207013,0.0983758,91666.0,91637.0,0.010917]
[1767722207308,0.010914,91665.0,91642.0,0.09452199]
[1767722207605,0.0983758,91675.0,91642.0,0.09452199]
[1767722207807,0.0983758,91662.0,91643.0,0.0928]
[1767722208005,0.0983758,91662.0,91644.0,0.0928]
[1767722208411,0.010914,91663.0,91645.0,0.0928]
[1767722208612,0.010914,91662.0,91645.0,0.0928]
[1767722208800,0.010914,91666.0,91645.0,0.0928]
[1767722209005,0.010912,91676.0,91649.0,0.10543799]
[1767722209200,0.010913,91670.0,91645.0,0.0928]
[1767722209404,0.0983758,91680.0,91646.0,0.18732199]
[1767722209605,0.1092878,91678.0,91649.0,0.010915]
[1767722209812,0.02276462,91677.0,91653.0,0.010915]
[1767722210005,0.03367662,91676.0,91653.0,0.010915]
[1767722210208,0.0928,91697.0,91646.0,0.0928]
[1767722210209,0.010913,91673.0,91649.0,0.09452199]
[1767722210410,0.02276462,91672.0,91650.0,0.010915]
[1767722210610,0.02276462,91671.0,91650.0,0.010915]
[1767722210915,0.02276462,91670.0,91649.0,0.09452199]
[1767722211210,0.09772333,91705.0,91674.0,0.09452199]
[1767722211417,0.0983758,91708.0,91683.0,0.010912]
[1767722211612,0.010909,91706.0,91680.0,0.010912]
[1767722211824,0.010909,91706.0,91676.0,0.08443399]
[1767722212309,0.010909,91707.0,91684.0,0.010911]
[1767722212514,0.0983758,91708.0,91684.0,0.010911]
[1767722212711,0.19334239,91716.0,91688.0,0.010911]
[1767722212908,0.010908,91712.0,91676.0,0.14404]
[1767722213115,0.0983758,91715.0,91676.0,0.14404]
[1767722213415,0.09772333,91714.0,91681.0,0.010912]
[1767722213619,0.010907,91723.0,91702.0,0.010909]
[1767722213620,0.09772333,91723.0,91702.0,0.010909]
[1767722213811,0.09772333,91733.0,91710.0,0.010908]
[1767722214114,0.0983758,91734.0,91711.0,0.0928]
[1767722214320,0.010906,91733.0,91711.0,0.0928]
[1767722214817,0.010906,91730.0,91711.0,0.0928]
[1767722215713,0.09772333,91732.0,91712.0,0.0928]
[1767722215917,0.09772333,91733.0,91712.0,0.0928]
[1767722216118,0.19609913,91734.0,91712.0,0.0928]
[1767722216315,0.1092818,91732.0,91712.0,0.0928]
[1767722216618,0.0983758,91714.0,91699.0,0.0928]
[1767722216817,0.09772333,91726.0,91699.0,0.0928]
[1767722216818,0.09772333,91722.0,91699.0,0.0928]
[1767722217013,0.09772333,91725.0,91700.0,0.010909]
[1767722217217,0.09772333,91724.0,91700.0,0.010909]
[1767722217410,0.0983758,91729.0,91700.0,0.010909]
[1767722217411,0.09772333,91725.0,91700.0,0.010909]
[1767722217717,0.09772333,91724.0,91699.0,0.0928]
[1767722218015,0.09772333,91732.0,91709.0,0.010908]
[1767722218208,0.10862933,91731.0,91701.0,0.010909]
[1767722218408,0.09772333,91731.0,91707.0,0.010909]
[1767722218911,0.09772333,91731.0,91700.0,0.09452199]
[1767722219217,0.09772333,91733.0,91709.0,0.09452199]
[1767722219421,0.09772333,91739.0,91724.0,0.010907]
[1767722219623,0.09772333,91739.0,91706.0,0.0912521]
[1767722219624,0.010906,91730.0,91706.0,0.0928]
[1767722219913,0.09561906,91737.0,91706.0,0.0928]
[1767722219914,0.09772333,91736.0,91706.0,0.0928]
[1767722220308,0.09772333,91736.0,91697.0,0.09452199]
[1767722220309,0.010906,91728.0,91697.0,0.09452199]
[1767722220515,0.010907,91725.0,91697.0,0.09452199]
[1767722220714,0.010908,91711.0,91685.0,0.09916453]
[1767722220909,0.01091,91699.0,91672.0,0.09916453]
[1767722221116,0.01091,91695.0,91667.0,0.20784]
[1767722221316,0.01091,91693.0,91668.0,0.0928]
[1767722221514,0.09261894,91689.0,91659.0,0.06088134]
[1767722221710,0.09261894,91682.0,91659.0,0.0928]
[1767722221911,0.09261894,91676.0,91644.0,0.0929573]
[1767722222113,0.10353194,91673.0,91644.0,0.0929573]
[1767722222420,0.10353194,91673.0,91611.0,0.08578851]
[1767722222421,0.10353194,91673.0,91645.0,0.0928]
[1767722222616,0.09261894,91673.0,91646.0,0.0928]
[1767722222918,0.010912,91679.0,91647.0,0.0929573]
[1767722223230,0.09122465,91683.0,91652.0,0.010915]
[1767722223231,0.02280399,91678.0,91652.0,0.010915]
[1767722223526,0.02280399,91677.0,91660.0,0.010914]
[1767722223715,0.02280399,91676.0,91661.0,0.0928]
[1767722223915,0.010911,91688.0,91661.0,0.0928]
[1767722224117,0.10352894,91693.0,91661.0,0.0928]
[1767722224316,0.09261894,91693.0,91662.0,0.0929573]
[1767722224719,0.010912,91684.0,91662.0,0.0929573]
[1767722225217,0.010912,91684.0,91661.0,0.0928]
[1767722225920,0.010912,91684.0,91646.0,0.09360937]
[1767722225921,0.09261894,91679.0,91644.0,0.010916]
[1767722226121,0.09261894,91689.0,91648.0,0.0929573]
[1767722226421,0.09261894,91689.0,91645.0,0.0928]
[1767722226422,0.09261894,91686.0,91650.0,0.0929573]
[1767722226611,0.09261894,91686.0,91651.0,0.0929573]
[1767722226831,0.09261894,91686.0,91655.0,0.010915]
[1767722227331,0.09261894,91684.0,91651.0,0.0708723]
[1767722227626,0.09261894,91684.0,91654.0,0.010915]
[1767722227826,0.09261894,91684.0,91657.0,0.010915]
[1767722228015,0.09261894,91684.0,91653.0,0.010915]
[1767722228216,0.09261894,91684.0,91659.0,0.010914]
[1767722228411,0.09261894,91684.0,91662.0,0.010914]
[1767722228618,0.09261894,91684.0,91655.0,0.010915]
[1767722229225,0.09261894,91684.0,91658.0,0.010914]
[1767722229432,0.09772333,91706.0,91664.0,0.010914]
[1767722229433,0.10352894,91694.0,91664.0,0.010914]
[1767722229621,0.010908,91709.0,91677.0,0.0929573]
[1767722229824,0.10352894,91700.0,91670.0,0.010913]
[1767722230030,0.010911,91685.0,91671.0,0.0928]
[1767722230330,0.09261894,91688.0,91672.0,0.0928]
[1767722230717,0.010912,91683.0,91655.0,0.0929573]
[1767722230920,0.010912,91683.0,91657.0,0.010915]
[1767722231118,0.10353094,91683.0,91657.0,0.010915]
[1767722231423,0.10353094,91683.0,91658.0,0.0928]
[1767722231624,0.09261894,91664.0,91651.0,0.0928]
[1767722231823,0.10353294,91663.0,91634.0,0.010917]
[1767722232027,0.09261894,91659.0,91636.0,0.010917]
[1767722232333,0.09261894,91659.0,91635.0,0.103717]
[1767722232628,0.09261894,91659.0,91623.0,0.0929573]
[1767722232830,0.09261894,91669.0,91641.0,0.010916]
[1767722233027,0.09261894,91667.0,91642.0,0.0928]
[1767722233224,0.11009462,91667.0,91642.0,0.0928]
[1767722233529,0.11009462,91667.0,91623.0,0.09360937]
[1767722233530,0.10353294,91664.0,91636.0,0.010917]
[1767722233722,0.09261894,91664.0,91642.0,0.010916]
[1767722233924,0.10353194,91672.0,91646.0,0.010916]
[1767722234226,0.10353194,91670.0,91642.0,0.010916]
[1767722234830,0.09261894,91670.0,91637.0,0.0929573]
[1767722235029,0.09261894,91670.0,91638.0,0.18656667]
[1767722235334,0.09261894,91667.0,91639.0,0.0928]
[1767722235634,0.09261894,91667.0,91641.0,0.010917]
[1767722235834,0.09122465,91679.0,91641.0,0.0929573]
[1767722235835,0.02271116,91666.0,91641.0,0.0929573]
[1767722236026,0.1153301,91665.0,91635.0,0.09360937]
[1767722236225,0.010914,91659.0,91636.0,0.0928]
[1767722236535,0.02271116,91658.0,91637.0,0.010917]
[1767722236739,0.02271116,91657.0,91636.0,0.0928]
[1767722236929,0.02271116,91656.0,91639.0,0.010917]
[1767722237133,0.01707379,91672.0,91648.0,0.010916]
[1767722237330,0.09261894,91672.0,91648.0,0.010916]
[1767722237837,0.18384359,91671.0,91636.0,0.0928]
[1767722238139,0.18384359,91671.0,91636.0,0.010917]
[1767722238140,0.09261894,91662.0,91636.0,0.010917]
[1767722238342,0.09261894,91662.0,91638.0,0.010917]
[1767722238642,0.09261894,91662.0,91639.0,0.0928]
[1767722238833,0.010913,91668.0,91643.0,0.010916]
[1767722239040,0.09261894,91667.0,91643.0,0.010916]
[1767722239233,0.09261894,91688.0,91655.0,0.0929573]
[1767722239533,0.09261894,91688.0,91643.0,0.4]
[1767722239534,0.10353094,91678.0,91644.0,0.0929573]
[1767722239737,0.10353094,91678.0,91645.0,0.0928]
[1767722239936,0.010913,91675.0,91650.0,0.010915]
[1767722240131,0.09261894,91672.0,91651.0,0.08230649]
[1767722240327,0.09772333,91686.0,91651.0,0.08230649]
[1767722240328,0.09261894,91681.0,91651.0,0.00317798]
[1767722240535,0.09261894,91681.0,91655.0,0.010915]
[1767722240734,0.10135226,91681.0,91656.0,0.103715]
[1767722241140,0.09044026,91681.0,91656.0,0.0928]
[1767722241340,0.010912,91679.0,91656.0,0.0928]
[1767722241534,0.02850667,91682.0,91657.0,0.0929573]
[1767722241735,0.02850667,91682.0,91656.0,0.103715]
[1767722241736,0.09772333,91680.0,91658.0,0.0929573]
[1767722242145,0.09772333,91680.0,91662.0,0.010914]
[1767722242351,0.09772333,91680.0,91658.0,0.09360937]
[1767722242548,0.01695957,91684.0,91658.0,0.09360937]
[1767722242747,0.09772333,91686.0,91658.0,0.09360937]
[1767722242943,0.19034227,91687.0,91658.0,0.09360937]
[1767722243145,0.18384359,91678.0,91656.0,0.0928]
[1767722243360,0.09261894,91681.0,91656.0,0.0928]
[1767722243545,0.09261894,91675.0,91656.0,0.0928]
[1767722243747,0.09261894,91675.0,91654.0,0.010915]
[1767722243948,0.09772333,91678.0,91660.0,0.010914]
[1767722244148,0.09772333,91680.0,91661.0,0.010914]
[1767722244355,0.09772333,91680.0,91667.0,0.010913]
[1767722244656,0.09772333,91687.0,91663.0,0.010914]
[1767722244849,0.09772333,91687.0,91667.0,0.010913]
[1767722245154,0.09772333,91688.0,91667.0,0.010913]
[1767722245354,0.09772333,91687.0,91667.0,0.010913]
[1767722245556,0.010912,91682.0,91660.0,0.0928]
[1767722245754,0.010912,91682.0,91636.0,0.460117]
[1767722245755,0.09261894,91679.0,91661.0,0.0928]
[1767722246058,0.09122465,91701.0,91666.0,0.010914]
[1767722246246,0.09764735,91681.0,91666.0,0.0929573]
[1767722246446,0.09764735,91681.0,91661.0,0.18640937]
[1767722246447,0.09122465,91701.0,91668.0,0.1038703]
[1767722246651,0.10712851,91701.0,91661.0,0.27936667]
[1767722246955,0.10712851,91701.0,91666.0,0.010914]
[1767722247159,0.010911,91692.0,91666.0,0.010914]
[1767722247360,0.01091,91695.0,91666.0,0.010914]
[1767722247964,0.01091,91695.0,91669.0,0.010913]
[1767722248153,0.0928,91714.0,91669.0,0.010913]
[1767722248462,0.01091,91697.0,91669.0,0.010913]
[1767722248759,0.0928,91714.0,91673.0,0.010913]
[1767722249055,0.010909,91704.0,91675.0,0.0929573]
[1767722249261,0.03276681,91716.0,91677.0,0.010912]
[1767722249456,0.03276681,91713.0,91679.0,0.010912]
[1767722249652,0.010909,91707.0,91681.0,0.010912]
[1767722249854,0.010909,91703.0,91680.0,0.0928]
[1767722250248,0.010909,91703.0,91681.0,0.0928]
[1767722250448,0.0928,91729.0,91676.0,0.010912]
[1767722250648,0.13007559,91710.0,91664.0,0.0929573]
[1767722250858,0.01091,91693.0,91666.0,0.010913]
[1767722251063,0.01091,91697.0,91673.0,0.1038703]
[1767722251262,0.01091,91697.0,91665.0,0.18640937]
[1767722251263,0.01091,91700.0,91675.0,0.010912]
[1767722251453,0.010908,91714.0,91677.0,0.010912]
[1767722251454,0.010909,91703.0,91677.0,0.010912]
[1767722251650,0.0928,91729.0,91675.0,0.09731446]
[1767722251651,0.0928,91730.0,91676.0,0.09731446]
[1767722251957,0.0928,91730.0,91675.0,0.09956485]
[1767722251958,0.010909,91704.0,91679.0,0.010912]
[1767722252156,0.13007559,91730.0,91684.0,0.010911]
[1767722252351,0.4,91729.0,91687.0,0.09731446]
[1767722252552,0.13007559,91750.0,91693.0,0.10822446]
[1767722252757,0.0928,91754.0,91695.0,0.09731446]
[1767722252758,0.010907,91718.0,91695.0,0.09731446]
[1767722252955,0.010907,91725.0,91698.0,0.01091]
[1767722253156,0.010907,91725.0,91695.0,0.09731446]
[1767722253359,0.0157364,91739.0,91704.0,0.09731446]
[1767722253551,0.0157364,91739.0,91694.0,0.0928]
[1767722253552,0.010906,91731.0,91706.0,0.09731446]
[1767722253857,0.13007559,91730.0,91695.0,0.09731446]
[1767722254064,0.010907,91718.0,91696.0,0.0928]
[1767722254262,0.00218602,91722.0,91696.0,0.0928]
[1767722254662,0.0928,91750.0,91696.0,0.0928]
[1767722254860,0.010909,91709.0,91687.0,0.09731446]
[1767722255061,0.010907,91724.0,91688.0,0.0928]
[1767722255271,0.010909,91706.0,91678.0,0.010912]
[1767722255560,0.13007559,91720.0,91683.0,0.010912]
[1767722255561,0.010908,91709.0,91683.0,0.010912]
[1767722255761,0.010908,91712.0,91683.0,0.09731446]
[1767722255964,0.010907,91718.0,91694.0,0.01091]
[1767722256159,0.09788076,91723.0,91691.0,0.09731446]
[1767722256160,0.4,91723.0,91691.0,0.09731446]
[1767722256360,0.010908,91716.0,91691.0,0.09731446]
[1767722256562,0.13007559,91730.0,91691.0,0.09731446]
[1767722256766,0.00123033,91727.0,91691.0,0.09731446]
[1767722256965,0.010908,91712.0,91691.0,0.09731446]
[1767722257265,0.01275351,91716.0,91691.0,0.09731446]
[1767722257562,0.00123033,91718.0,91691.0,0.03231446]
[1767722257563,0.010907,91718.0,91691.0,0.03231446]
[1767722257763,0.010907,91718.0,91693.0,0.01091]
[1767722257965,0.065,91729.0,91693.0,0.01091]
[1767722258168,0.010908,91717.0,91690.0,0.010911]
[1767722258366,0.010908,91712.0,91680.0,0.09956485]
[1767722258664,0.010908,91715.0,91690.0,0.010911]
[1767722258854,0.0928,91753.0,91693.0,0.09731446]
[1767722259057,0.14098159,91730.0,91693.0,0.09731446]
[1767722259255,0.010909,91708.0,91693.0,0.09731446]
[1767722259468,0.010909,91708.0,91637.0,0.05854098]
[1767722259469,0.09506259,91698.0,91631.0,0.37124]
[1767722259767,0.010912,91683.0,91651.0,0.09956485]
[1767722260075,0.010911,91687.0,91653.0,0.09956485]
[1767722260454,0.05454,91716.0,91652.0,0.103715]
[1767722260455,0.010908,91714.0,91662.0,0.010914]
[1767722260763,0.010911,91692.0,91660.0,0.13007559]
[1767722260958,0.010911,91692.0,91652.0,0.0928]
[1767722260959,0.01091,91696.0,91652.0,0.0928]
[1767722261271,0.12423408,91700.0,91653.0,0.1807]
[1767722261463,0.01091,91695.0,91666.0,0.09731446]
[1767722261664,0.01091,91695.0,91668.0,0.09731446]
[1767722261971,0.01091,91693.0,91668.0,0.09731446]
[1767722262165,0.13007559,91710.0,91668.0,0.09731446]
[1767722262771,0.01091,91698.0,91671.0,0.09731446]
[1767722262969,0.01091,91698.0,91673.0,0.09731446]
[1767722263170,0.01091,91695.0,91673.0,0.09731446]
[1767722263362,0.010908,91716.0,91673.0,0.09731446]
[1767722263568,0.00208614,91708.0,91676.0,0.09731446]
[1767722263762,0.01091,91700.0,91676.0,0.09731446]
[1767722263962,0.01091,91700.0,91675.0,0.1807]
[1767722263963,0.010909,91705.0,91678.0,0.09731446]
[1767722264568,0.010909,91705.0,91675.0,0.191612]
[1767722264569,0.00118138,91701.0,91675.0,0.1807]
[1767722264768,0.010911,91691.0,91675.0,0.1807]
[1767722264963,0.010911,91691.0,91672.0,0.0928]
[1767722265170,0.010911,91688.0,91673.0,0.75364]
[1767722265370,0.010911,91688.0,91674.0,0.0538]
[1767722265970,0.01028663,91701.0,91674.0,0.0538]
[1767722265971,0.010911,91689.0,91674.0,0.0538]
[1767722266270,0.09786228,91703.0,91675.0,0.09731446]
[1767722266571,0.13007559,91720.0,91676.0,0.46136]
[1767722266572,0.01453413,91696.0,91676.0,0.46136]
[1767722266770,0.010911,91690.0,91674.0,0.88252]
[1767722267073,0.010911,91690.0,91675.0,0.0928]
[1767722267274,0.010911,91690.0,91668.0,0.09731446]
[1767722267461,0.01453413,91696.0,91670.0,0.09731446]
[1767722267667,0.13007559,91720.0,91680.0,0.09731446]
[1767722267668,0.0978828,91710.0,91680.0,0.09731446]
[1767722267863,0.01453413,91714.0,91680.0,0.09731446]
[1767722267864,0.0978828,91712.0,91680.0,0.09731446]
[1767722268070,0.010909,91708.0,91680.0,0.09731446]
[1767722268570,0.010909,91705.0,91680.0,0.09731446]
[1767722268874,0.01284411,91712.0,91680.0,0.09731446]
[1767722269073,0.010909,91706.0,91680.0,0.09731446]
[1767722269267,0.01284411,91704.0,91672.0,0.27801446]
[1767722269465,0.01091,91698.0,91673.0,0.09731446]
[1767722269763,0.01091,91699.0,91675.0,0.09731446]
[1767722270077,0.01525414,91711.0,91675.0,0.09731446]
[1767722270277,0.010909,91705.0,91678.0,0.09731446]
[1767722270479,0.010909,91706.0,91680.0,0.09731446]
[1767722270778,0.010908,91709.0,91682.0,0.09731446]
[1767722270977,0.010908,91709.0,91683.0,0.09731446]
[1767722271274,0.0978828,91720.0,91686.0,0.09956485]
[1767722271465,0.01525414,91727.0,91697.0,0.09731446]
[1767722271466,0.1087898,91722.0,91697.0,0.09731446]
[1767722271670,0.010907,91722.0,91697.0,0.09731446]
[1767722271966,0.010906,91727.0,91701.0,0.09731446]
[1767722272165,0.0978828,91737.0,91706.0,0.09731446]
[1767722272476,0.01308511,91739.0,91719.0,0.09731446]
[1767722272778,0.00218011,91739.0,91719.0,0.09731446]
[1767722272974,0.00218011,91739.0,91712.0,0.010908]
[1767722272975,0.00218011,91739.0,91713.0,0.09956485]
[1767722273175,0.010905,91738.0,91713.0,0.09738403]
[1767722273377,0.00218011,91739.0,91713.0,0.09738403]
[1767722273778,0.01308511,91739.0,91713.0,0.09738403]
[1767722274076,0.00218011,91739.0,91714.0,0.010908]
[1767722274266,0.00218011,91739.0,91725.0,0.010907]
[1767722274466,0.010903,91753.0,91726.0,0.0928]
[1767722274876,0.16162392,91760.0,91726.0,0.0928]
[1767722274877,0.010904,91750.0,91726.0,0.0928]
[1767722275079,0.010904,91750.0,91727.0,0.09731446]
[1767722275278,0.010903,91754.0,91727.0,0.09731446]
[1767722275477,0.46374112,91759.0,91727.0,0.09731446]
[1767722275677,0.010905,91742.0,91726.0,0.0928]
[1767722275873,0.010904,91744.0,91726.0,0.0928]
[1767722276073,0.010904,91746.0,91727.0,0.09731446]
[1767722276576,0.01497814,91757.0,91729.0,0.09731446]
[1767722276778,0.0978828,91760.0,91729.0,0.09731446]
[1767722276779,0.010904,91747.0,91729.0,0.09731446]
[1767722276971,0.010904,91751.0,91729.0,0.09731446]
[1767722277475,0.01497814,91755.0,91729.0,0.09731446]
[1767722277882,0.0978828,91762.0,91729.0,0.09731446]
[1767722278183,0.11286094,91763.0,91729.0,0.09731446]
[1767722278380,0.01542497,91760.0,91729.0,0.09731446]
[1767722278577,0.01542497,91760.0,91710.0,0.13007559]
[1767722278578,0.010904,91745.0,91730.0,0.0928]
[1767722278785,0.010903,91753.0,91731.0,0.0928]
[1767722278974,0.06429807,91758.0,91732.0,0.09731446]
[1767722279586,0.010903,91753.0,91732.0,0.09731446]
[1767722280083,0.06429807,91766.0,91733.0,0.09956485]
[1767722280084,0.0978828,91761.0,91733.0,0.09956485]
[1767722280386,0.010904,91749.0,91731.0,0.0928]
[1767722280575,0.010904,91746.0,91731.0,0.0928]
[1767722280882,0.010905,91741.0,91710.0,0.09956485]
[1767722281180,0.010904,91746.0,91720.0,0.61068]
[1767722281371,0.0978828,91752.0,91721.0,0.0928]
[1767722281576,0.010904,91744.0,91720.0,0.09845661]
[1767722281771,0.10918458,91752.0,91721.0,0.29212]
[1767722281972,0.010904,91751.0,91722.0,0.10936361]
[1767722282181,0.13693165,91764.0,91725.0,0.09845661]
[1767722282182,0.23481445,91764.0,91725.0,0.09845661]
[1767722282374,0.0978828,91770.0,91738.0,0.09845661]
[1767722282578,0.010901,91769.0,91742.0,0.09845661]
[1767722282777,0.010901,91769.0,91744.0,0.09477127]
[1767722282984,0.010901,91773.0,91746.0,0.09477127]
[1767722283177,0.010901,91773.0,91751.0,0.09477127]
[1767722283486,0.0109,91777.0,91752.0,0.09477127]
[1767722283686,0.0109,91784.0,91757.0,0.09477127]
[1767722283872,0.0109,91784.0,91758.0,0.09477127]
[1767722284076,0.0109,91783.0,91765.0,0.19391031]
[1767722284277,0.10821272,91789.0,91766.0,0.09276]
[1767722284475,0.06040956,91801.0,91733.0,0.09710947]
[1767722284476,0.00538396,91778.0,91733.0,0.09710947]
[1767722284776,0.00538396,91778.0,91686.0,0.058687]
[1767722284777,0.010902,91763.0,91735.0,0.09710947]
[1767722284980,0.010902,91760.0,91737.0,0.09710947]
[1767722285580,0.02223226,91769.0,91737.0,0.09710947]
[1767722285776,0.010904,91749.0,91738.0,0.09276]
[1767722285982,0.00538396,91767.0,91706.0,0.37116]
[1767722285983,0.010903,91758.0,91739.0,0.13203307]
[1767722286182,0.14029415,91770.0,91741.0,0.09710947]
[1767722286383,0.010903,91759.0,91741.0,0.09710947]
[1767722286581,0.14029415,91770.0,91741.0,0.09710947]
[1767722286582,0.4,91769.0,91741.0,0.09710947]
[1767722286788,0.4,91769.0,91731.0,0.64348]
[1767722286789,0.00464216,91759.0,91731.0,0.09710947]
[1767722287092,0.00464216,91755.0,91732.0,0.09276]
[1767722287292,0.010904,91748.0,91733.0,0.09276]
[1767722287691,0.010903,91756.0,91733.0,0.09276]
[1767722287988,0.13007559,91760.0,91733.0,0.09276]
[1767722288186,0.53007559,91760.0,91733.0,0.09276]
[1767722288580,0.010904,91750.0,91731.0,0.09710947]
[1767722288786,0.13007559,91750.0,91732.0,0.18986947]
[1767722288986,0.010904,91749.0,91732.0,0.18986947]
[1767722289186,0.010904,91749.0,91733.0,0.49710947]
[1767722289491,0.010903,91755.0,91734.0,0.09710947]
[1767722289681,0.010904,91751.0,91734.0,0.09710947]
[1767722289886,0.010904,91748.0,91735.0,0.09276]
[1767722290286,0.09276,91788.0,91735.0,0.09276]
[1767722290287,0.010904,91749.0,91735.0,0.09276]